bitfinex-derivatives/quotes_BTCF0:USTF0_20220102
["timestamp","ask_amount","ask_price","bid_price","bid_amount"]
[1641166482688,1.33363833,47441.0,47435.0,0.14033567]
[1641166483291,1.45263833,47441.0,47435.0,0.25433567]
[1641166483491,1.45263833,47441.0,47436.0,0.35177448]
[1641166484591,1.33363833,47441.0,47436.0,0.35177448]
[1641166485393,1.45063833,47441.0,47436.0,0.46577448]
[1641166486510,1.45063833,47441.0,47436.0,0.35177448]
[1641166486707,1.33363833,47441.0,47436.0,0.35177448]
[1641166487407,1.44463833,47441.0,47436.0,0.46677448]
[1641166487809,0.42160083,47439.0,47436.0,0.46677448]
[1641166488609,0.42160083,47439.0,47436.0,0.35177448]
[1641166488811,0.42160083,47439.0,47435.0,0.49211015]
[1641166489310,0.53760083,47439.0,47435.0,0.61011015]
[1641166489509,0.62518083,47439.0,47435.0,0.61011015]
[1641166489909,0.82626743,47439.0,47435.0,0.61011015]
[1641166490109,0.82626743,47439.0,47435.0,0.46977448]
[1641166490610,0.71026743,47439.0,47435.0,0.35177448]
[1641166490812,0.2886666,47439.0,47433.0,0.51643967]
[1641166491113,1.31255258,47438.0,47433.0,0.35203294]
[1641166491311,1.31255258,47438.0,47433.0,0.45703294]
[1641166491713,1.31255258,47438.0,47433.0,0.105]
[1641166492016,0.1410866,47439.0,47433.0,0.105]
[1641166492017,1.31255258,47437.0,47433.0,0.105]
[1641166492715,1.31255258,47437.0,47430.0,0.14033567]
[1641166493115,0.20108896,47434.0,47429.0,0.82084758]
[1641166493317,0.20108896,47434.0,47430.0,0.112]
[1641166493516,1.51364154,47434.0,47431.0,0.82213848]
[1641166493916,0.09001534,47433.0,47431.0,0.82213848]
[1641166494120,0.09001534,47433.0,47426.0,0.79892155]
[1641166494121,0.16242691,47432.0,47426.0,0.79892155]
[1641166494315,0.001,47427.0,47426.0,0.79892155]
[1641166494517,0.06233,47427.0,47426.0,0.79892155]
[1641166494918,1.67033,47427.0,47426.0,0.79892155]
[1641166495119,1.67033,47427.0,47414.0,1.08455213]
[1641166495120,0.40789045,47426.0,47414.0,1.08455213]
[1641166495320,0.18,47416.0,47414.0,1.08455213]
[1641166495519,0.26385,47416.0,47415.0,0.85136165]
[1641166495723,0.26385,47416.0,47403.0,0.85136165]
[1641166495921,0.18,47409.0,47403.0,0.85136165]
[1641166496323,0.18,47409.0,47404.0,0.01198679]
[1641166496522,0.18,47409.0,47403.0,0.85136165]
[1641166496922,0.18,47409.0,47401.0,0.14033567]
[1641166497325,0.304,47409.0,47401.0,0.14033567]
[1641166497527,0.28487032,47405.0,47401.0,0.14033567]
[1641166497824,0.10702913,47404.0,47401.0,0.14033567]
[1641166498221,0.10702913,47404.0,47391.0,0.14033567]
[1641166498424,0.19691831,47404.0,47391.0,0.14033567]
[1641166498623,0.11099138,47404.0,47393.0,0.0119893]
[1641166499423,0.23399138,47404.0,47393.0,0.0119893]
[1641166499628,0.08988918,47403.0,47393.0,0.0119893]
[1641166500427,0.08988918,47403.0,47396.0,0.18]
[1641166500629,0.08988918,47403.0,47402.0,0.18]
[1641166500825,1.43806662,47411.0,47400.0,0.59124037]
[1641166501027,1.43806662,47411.0,47407.0,0.18]
[1641166501225,1.43806662,47411.0,47407.0,0.27327]
[1641166501427,0.125,47411.0,47407.0,0.09327]
[1641166501629,0.125,47411.0,47407.0,0.27327]
[1641166502227,0.125,47411.0,47407.0,0.09327]
[1641166502427,0.125,47411.0,47404.0,0.14033567]
[1641166502631,0.125,47411.0,47407.0,0.3541848]
[1641166503330,0.124,47411.0,47407.0,0.3541848]
[1641166503529,0.20283295,47410.0,47407.0,0.3541848]
[1641166503731,0.14509924,47411.0,47410.0,0.10848321]
[1641166503929,0.124,47411.0,47410.0,0.10848321]
[1641166504530,0.14610247,47411.0,47410.0,0.10848321]
[1641166504733,0.02210247,47411.0,47410.0,0.10848321]
[1641166505133,1.89575895,47411.0,47410.0,0.10848321]
[1641166505332,2.01775895,47411.0,47410.0,0.10848321]
[1641166505531,0.90975895,47411.0,47410.0,0.10848321]
[1641166505932,2.01775895,47411.0,47410.0,0.10848321]
[1641166506734,1.89575895,47411.0,47410.0,0.10848321]
[1641166507134,0.78775895,47411.0,47410.0,0.10848321]
[1641166507334,0.40975895,47411.0,47410.0,0.10848321]
[1641166507533,0.14410247,47411.0,47410.0,0.10848321]
[1641166508737,0.02210247,47411.0,47410.0,0.10848321]
[1641166509338,0.14510247,47411.0,47410.0,0.10848321]
[1641166509739,1.58312621,47411.0,47410.0,0.10848321]
[1641166510339,1.75310247,47411.0,47410.0,0.10848321]
[1641166510740,1.63010247,47411.0,47410.0,0.10848321]
[1641166511339,1.75210247,47411.0,47410.0,0.10848321]
[1641166512440,0.64410247,47411.0,47410.0,0.10848321]
[1641166512840,1.63010247,47411.0,47410.0,0.10848321]
[1641166513242,1.74999721,47411.0,47410.0,0.10848321]
[1641166513553,0.0342398,47404.0,47400.0,0.3541848]
[1641166513749,0.06883,47404.0,47400.0,0.3541848]
[1641166514552,0.56883,47404.0,47403.0,0.22367328]
[1641166514757,0.77093448,47404.0,47403.0,0.22367328]
[1641166515351,0.89293448,47404.0,47403.0,0.22367328]
[1641166515851,2.00093448,47404.0,47403.0,0.22367328]
[1641166516252,0.89293448,47404.0,47403.0,0.22367328]
[1641166516451,2.00093448,47404.0,47403.0,0.22367328]
[1641166516655,1.96887799,47404.0,47403.0,0.22367328]
[1641166517358,2.08887799,47404.0,47403.0,0.22367328]
[1641166518352,2.08887799,47404.0,47398.0,0.3541848]
[1641166518556,1.789,47399.0,47398.0,0.3541848]
[1641166518752,0.55667257,47399.0,47398.0,0.3541848]
[1641166519154,0.55667257,47399.0,47396.0,0.590308]
[1641166519354,0.55667257,47399.0,47394.0,0.3541848]
[1641166519355,0.001,47397.0,47394.0,0.3541848]
[1641166519552,0.001,47395.0,47394.0,0.3541848]
[1641166520162,0.001,47395.0,47393.0,0.590308]
[1641166520360,0.08994351,47396.0,47393.0,0.590308]
[1641166521063,0.08994351,47394.0,47393.0,0.590308]
[1641166521261,0.14761351,47394.0,47393.0,0.590308]
[1641166521861,1.37696574,47394.0,47393.0,0.590308]
[1641166522664,1.37696574,47394.0,47392.0,0.96676686]
[1641166522665,1.46690925,47394.0,47392.0,0.55707486]
[1641166523363,1.59790925,47394.0,47392.0,0.55707486]
[1641166523569,0.08994351,47393.0,47392.0,0.55707486]
[1641166524367,0.08994351,47393.0,47392.0,1.13815464]
[1641166525171,0.19800567,47394.0,47392.0,0.58107978]
[1641166525370,0.129,47393.0,47392.0,0.58107978]
[1641166525770,0.129,47393.0,47385.0,0.009794]
[1641166526874,0.34074808,47394.0,47392.0,0.58107978]
[1641166527478,0.47074808,47394.0,47393.0,0.5470939]
[1641166527677,0.32800567,47394.0,47393.0,0.5470939]
[1641166528777,0.19800567,47394.0,47393.0,0.5470939]
[1641166529378,0.32600567,47394.0,47393.0,0.5470939]
[1641166530186,0.32600567,47394.0,47393.0,1.0941878]
[1641166530682,0.19800567,47394.0,47393.0,1.0941878]
[1641166531480,0.32900567,47394.0,47393.0,1.0941878]
[1641166532881,0.19800567,47394.0,47393.0,1.0941878]
[1641166533380,0.33000567,47394.0,47393.0,1.0941878]
[1641166534783,0.19800567,47394.0,47393.0,1.0941878]
[1641166535382,0.32800567,47394.0,47393.0,1.0941878]
[1641166535586,0.32900567,47394.0,47393.0,1.0941878]
[1641166536485,0.32900567,47394.0,47385.0,0.009794]
[1641166536684,0.32800567,47394.0,47385.0,0.009794]
[1641166536884,0.19800567,47394.0,47385.0,0.009794]
[1641166537488,0.32700567,47394.0,47385.0,0.009794]
[1641166538687,0.19800567,47394.0,47385.0,0.009794]
[1641166539389,0.08995097,47393.0,47392.0,0.82698928]
[1641166539589,0.09095097,47393.0,47392.0,0.82698928]
[1641166540689,1.41024671,47393.0,47391.0,0.82698928]
[1641166540889,0.001,47392.0,47391.0,0.82698928]
[1641166541388,0.131,47392.0,47391.0,0.82698928]
[1641166541892,0.22095097,47392.0,47391.0,0.82698928]
[1641166542890,0.09095097,47392.0,47391.0,0.82698928]
[1641166543593,0.45004669,47392.0,47391.0,0.82698928]
[1641166544896,1.63934243,47392.0,47390.0,0.82698928]
[1641166545197,0.001,47391.0,47390.0,0.82698928]
[1641166545494,0.09095097,47391.0,47390.0,0.82698928]
[1641166547498,0.22095097,47391.0,47390.0,0.82698928]
[1641166548900,0.09095097,47391.0,47390.0,0.82698928]
[1641166549502,0.22095097,47391.0,47390.0,0.82698928]
[1641166549902,0.22095097,47391.0,47390.0,0.3566887]
[1641166550903,0.09095097,47391.0,47390.0,0.3566887]
[1641166551505,0.22095097,47391.0,47390.0,0.3566887]
[1641166551806,0.42205959,47391.0,47390.0,0.3566887]
[1641166552211,0.42205959,47391.0,47389.0,0.3566887]
[1641166552405,0.181,47390.0,47389.0,0.3566887]
[1641166552605,0.24498,47390.0,47389.0,0.3566887]
[1641166553010,0.38531567,47390.0,47389.0,0.3566887]
[1641166553510,0.60426664,47390.0,47385.0,0.82698928]
[1641166553712,0.001,47386.0,47384.0,0.3566887]
[1641166553908,0.001,47385.0,47384.0,0.3566887]
[1641166554921,0.09095097,47385.0,47383.0,0.3566887]
[1641166555117,0.001,47384.0,47383.0,0.3566887]
[1641166555920,0.09095097,47384.0,47383.0,0.3566887]
[1641166557622,0.22895097,47384.0,47383.0,0.3566887]
[1641166559024,0.09095097,47384.0,47383.0,0.3566887]
[1641166559226,0.09095097,47384.0,47382.0,0.3566887]
[1641166559423,0.001,47383.0,47382.0,0.3566887]
[1641166559825,0.09095097,47383.0,47381.0,0.59532557]
[1641166560024,0.08995097,47383.0,47381.0,0.59532557]
[1641166560225,0.02111204,47382.0,47381.0,0.59532557]
[1641166560627,0.95031547,47382.0,47381.0,0.59532557]
[1641166561427,0.11106301,47382.0,47381.0,0.59532557]
[1641166561627,0.25006301,47382.0,47381.0,0.59532557]
[1641166562835,0.25106301,47382.0,47381.0,0.59532557]
[1641166563031,0.95131364,47382.0,47381.0,0.59532557]
[1641166563228,0.95031364,47382.0,47381.0,0.59532557]
[1641166563432,0.95131364,47382.0,47381.0,0.59532557]
[1641166563628,0.25106301,47382.0,47381.0,0.59532557]
[1641166563831,0.25106301,47382.0,47379.0,0.82698928]
[1641166563832,0.25106301,47382.0,47379.0,0.59532557]
[1641166564030,0.25006301,47382.0,47379.0,0.59532557]
[1641166564834,0.08995097,47381.0,47378.0,0.59532557]
[1641166565237,0.80934697,47379.0,47378.0,0.59532557]
[1641166565435,1.93846309,47379.0,47378.0,0.59523639]
[1641166565633,2.05842992,47379.0,47378.0,0.59523639]
[1641166566233,2.05842992,47379.0,47378.0,0.01053639]
[1641166566635,1.93008295,47379.0,47376.0,0.70915303]
[1641166566836,0.001,47377.0,47376.0,0.70915303]
[1641166567135,1.88967134,47377.0,47376.0,0.70915303]
[1641166567335,2.00963817,47377.0,47376.0,0.70915303]
[1641166567536,0.90163817,47377.0,47376.0,0.70915303]
[1641166567735,1.03663817,47377.0,47376.0,0.70915303]
[1641166567936,0.91667134,47377.0,47376.0,0.70915303]
[1641166568137,0.91667134,47377.0,47374.0,1.20061599]
[1641166568340,0.001,47375.0,47374.0,1.20061599]
[1641166568543,0.001,47375.0,47374.0,0.02]
[1641166569740,1.6660765,47375.0,47374.0,0.02]
[1641166570136,1.72940196,47375.0,47374.0,0.02]
[1641166570337,0.29027643,47375.0,47374.0,0.02]
[1641166570937,0.15427643,47375.0,47374.0,0.02]
[1641166571339,0.15327643,47375.0,47374.0,0.02]
[1641166571537,0.15327643,47375.0,47374.0,0.2]
[1641166571741,0.22595097,47375.0,47374.0,0.2]
[1641166571940,0.02111612,47379.0,47374.0,0.2]
[1641166572139,0.02111612,47379.0,47378.0,0.18]
[1641166572341,0.02111167,47383.0,47378.0,0.18]
[1641166572538,0.02111167,47383.0,47374.0,0.108704]
[1641166572742,0.20111451,47376.0,47374.0,0.108704]
[1641166572942,0.02211802,47375.0,47374.0,0.09891]
[1641166573143,0.00806164,47372.0,47369.0,1.29867759]
[1641166573544,0.18,47374.0,47373.0,1.18061599]
[1641166575243,1.61972893,47374.0,47369.0,0.96792199]
[1641166575641,1.75672893,47374.0,47369.0,0.83792199]
[1641166576047,1.43972893,47373.0,47371.0,0.35926725]
[1641166576248,1.54287497,47373.0,47371.0,0.35926725]
[1641166576844,1.54287497,47373.0,47370.0,0.59877875]
[1641166576845,0.10314604,47373.0,47372.0,0.35926725]
[1641166577646,1.68187497,47373.0,47371.0,0.35926725]
[1641166578648,1.57872893,47373.0,47371.0,0.35926725]
[1641166579546,0.001,47372.0,47371.0,0.35926725]
[1641166581355,0.001,47372.0,47370.0,0.52378082]
[1641166581549,1.93972893,47373.0,47370.0,0.52378082]
[1641166581749,0.14,47372.0,47370.0,0.52378082]
[1641166582552,0.001,47371.0,47370.0,0.52378082]
[1641166583652,0.141,47371.0,47370.0,0.52378082]
[1641166584154,0.34211955,47371.0,47370.0,0.52378082]
[1641166584454,0.84211955,47371.0,47370.0,0.52378082]
[1641166584653,1.95011955,47371.0,47370.0,0.52378082]
[1641166585053,1.81011955,47371.0,47370.0,0.52378082]
[1641166585252,1.95045522,47371.0,47370.0,0.52378082]
[1641166585454,2.07045641,47371.0,47370.0,0.52378082]
[1641166585652,2.21145641,47371.0,47369.0,0.83792199]
[1641166585857,0.001,47370.0,47365.0,0.14033567]
[1641166586054,0.181,47366.0,47365.0,0.14033567]
[1641166586255,0.75061,47366.0,47361.0,0.83792199]
[1641166586459,0.181,47362.0,47361.0,0.83792199]
[1641166586656,0.202126,47362.0,47361.0,0.83792199]
[1641166586855,0.202126,47362.0,47361.0,0.77892199]
[1641166587055,0.29219838,47362.0,47361.0,0.77892199]
[1641166587666,0.43719838,47362.0,47358.0,0.77892199]
[1641166587866,0.181,47359.0,47358.0,0.77892199]
[1641166588465,0.181,47359.0,47356.0,1.18061599]
[1641166588669,0.07804246,47358.0,47356.0,1.18061599]
[1641166588867,0.07804246,47358.0,47353.0,1.18061599]
[1641166589668,0.40904246,47358.0,47353.0,1.18061599]
[1641166589870,0.49905661,47358.0,47353.0,1.18061599]
[1641166590272,0.31905661,47358.0,47353.0,1.18061599]
[1641166590470,0.49905661,47358.0,47353.0,1.18061599]
[1641166590671,0.42201415,47358.0,47353.0,1.18061599]
[1641166591069,0.27101415,47358.0,47353.0,1.18061599]
[1641166591272,0.27101415,47358.0,47345.0,0.56211817]
[1641166591273,0.27101415,47358.0,47355.0,0.6001368]
[1641166591675,0.24201415,47358.0,47355.0,0.6001368]
[1641166592572,0.24201415,47358.0,47357.0,0.50041524]
[1641166592971,0.09101415,47358.0,47357.0,0.50041524]
[1641166593679,0.40501415,47358.0,47357.0,0.58941524]
[1641166595078,0.22501415,47358.0,47357.0,0.58941524]
[1641166595276,0.09101415,47358.0,47357.0,0.50041524]
[1641166595475,0.09101415,47358.0,47357.0,0.14033567]
[1641166595681,0.09101415,47358.0,47357.0,0.21129567]
[1641166595878,0.22401415,47358.0,47357.0,0.47129567]
[1641166597078,0.09001415,47358.0,47357.0,1.23141479]
[1641166597678,1.46005879,47362.0,47357.0,1.37841479]
[1641166598279,1.46005879,47362.0,47357.0,0.53829567]
[1641166598479,0.84003236,47358.0,47357.0,0.53829567]
[1641166599278,0.84003236,47358.0,47357.0,0.39129567]
[1641166599680,0.02112108,47362.0,47357.0,0.53829567]
[1641166599681,0.84003236,47360.0,47357.0,0.53829567]
[1641166599880,0.60000196,47358.0,47357.0,0.53829567]
[1641166601683,0.60000196,47358.0,47357.0,0.21129567]
[1641166601882,0.60000196,47358.0,47357.0,0.28733567]
[1641166602187,0.84003236,47359.0,47357.0,0.28733567]
[1641166602385,0.84003236,47358.0,47357.0,0.28733567]
[1641166603083,0.84003236,47358.0,47357.0,0.14033567]
[1641166603485,0.02112108,47362.0,47357.0,0.14033567]
[1641166603686,0.02112108,47362.0,47357.0,0.28933567]
[1641166604794,1.34069521,47362.0,47361.0,0.59494225]
[1641166605491,1.34069521,47362.0,47359.0,1.2001405]
[1641166605691,1.34069521,47362.0,47361.0,0.149]
[1641166605692,1.34569521,47362.0,47361.0,0.149]
[1641166606695,0.02612108,47362.0,47361.0,0.74907714]
[1641166607095,0.02112108,47362.0,47361.0,0.60007714]
[1641166607795,0.02112108,47362.0,47361.0,0.74907714]
[1641166609096,0.02112108,47362.0,47361.0,0.60007714]
[1641166609297,0.02112108,47362.0,47358.0,1.2001405]
[1641166609800,0.09812108,47362.0,47358.0,1.3471405]
[1641166609997,0.09812108,47362.0,47361.0,0.60007839]
[1641166611697,0.02112108,47362.0,47361.0,0.60007839]
[1641166611897,0.06312108,47362.0,47361.0,0.74807839]
[1641166612899,0.1531302,47362.0,47361.0,0.148]
[1641166613799,0.1671302,47362.0,47361.0,0.147]
[1641166614601,0.1671302,47362.0,47361.0,0.98396583]
[1641166615201,0.1111302,47362.0,47361.0,0.83696583]
[1641166615803,0.1491302,47362.0,47361.0,0.99396583]
[1641166616103,0.1491302,47362.0,47361.0,0.72555778]
[1641166617204,0.1111302,47362.0,47361.0,0.56855778]
[1641166617408,0.1111302,47362.0,47359.0,1.2001405]
[1641166617807,0.2291302,47362.0,47361.0,0.75062724]
[1641166618408,0.13912108,47362.0,47361.0,0.75062724]
[1641166619106,0.02112108,47362.0,47361.0,0.59762724]
[1641166619806,0.13712108,47362.0,47361.0,0.75162724]
[1641166621108,0.02112108,47362.0,47361.0,0.59762724]
[1641166621909,0.13612108,47362.0,47361.0,0.154]
[1641166622809,1.45626427,47362.0,47361.0,0.75162724]
[1641166623406,0.02112108,47362.0,47361.0,0.59762724]
[1641166623806,0.02112108,47362.0,47361.0,0.75162724]
[1641166623807,0.13712108,47362.0,47361.0,0.75162724]
[1641166625112,0.25712127,47362.0,47361.0,0.75162724]
[1641166625308,0.14112127,47362.0,47361.0,0.59762724]
[1641166625707,0.02112108,47362.0,47361.0,0.59762724]
[1641166625907,0.14012108,47362.0,47361.0,0.75062724]
[1641166626113,0.89613238,47362.0,47361.0,0.44861568]
[1641166626510,1.01613407,47362.0,47361.0,0.44861568]
[1641166627108,0.89813407,47362.0,47361.0,0.35896382]
[1641166627310,0.89813407,47362.0,47357.0,0.14033567]
[1641166627508,0.001,47358.0,47357.0,0.14033567]
[1641166627910,0.12100169,47358.0,47357.0,0.14033567]
[1641166628113,0.001,47358.0,47357.0,0.14033567]
[1641166628309,0.07701803,47358.0,47357.0,0.14033567]
[1641166628523,0.21814556,47358.0,47357.0,0.14033567]
[1641166629913,1.68569668,47358.0,47357.0,0.14033567]
[1641166630613,0.29012753,47358.0,47357.0,0.14033567]
[1641166630814,0.28912753,47358.0,47357.0,0.14033567]
[1641166631212,0.14112753,47358.0,47357.0,0.14033567]
[1641166631812,0.02112584,47358.0,47357.0,0.14033567]
[1641166632012,0.17812584,47358.0,47357.0,0.14033567]
[1641166633812,0.14612584,47358.0,47357.0,0.14033567]
[1641166634614,0.23614128,47358.0,47357.0,0.49929949]
[1641166635213,0.11114128,47358.0,47357.0,0.49929949]
[1641166635914,0.23614128,47358.0,47357.0,0.49929949]
[1641166637328,0.11114128,47358.0,47357.0,0.49929949]
[1641166637827,0.23814128,47358.0,47357.0,0.49929949]
[1641166639232,0.11114128,47358.0,47357.0,0.14033567]
[1641166639931,0.25514128,47358.0,47357.0,0.14033567]
[1641166640133,0.25514128,47358.0,47357.0,0.49929949]
[1641166640933,0.25514128,47358.0,47357.0,0.14033567]
[1641166641133,0.25514128,47358.0,47357.0,0.73796291]
[1641166641332,0.11114128,47358.0,47357.0,0.73796291]
[1641166642034,0.11114128,47358.0,47357.0,0.14033567]
[1641166642637,0.11114128,47358.0,47357.0,1.34047617]
[1641166644036,0.25414128,47358.0,47357.0,1.34047617]
[1641166645540,0.37414735,47358.0,47357.0,0.14033567]
[1641166645939,0.37114735,47358.0,47357.0,0.14033567]
[1641166646442,0.25114128,47358.0,47357.0,0.14033567]
[1641166647039,0.37114753,47358.0,47357.0,0.14033567]
[1641166647238,0.23114753,47358.0,47357.0,0.14033567]
[1641166647641,0.23114753,47358.0,47356.0,1.2001405]
[1641166647941,0.38914753,47358.0,47356.0,1.2001405]
[1641166648141,0.26914128,47358.0,47357.0,0.14033567]
[1641166648345,0.26914128,47358.0,47357.0,0.97934675]
[1641166648541,0.38914718,47358.0,47357.0,0.97934675]
[1641166649242,0.23114718,47358.0,47357.0,1.97934675]
[1641166650040,0.39214718,47358.0,47357.0,1.97934675]
[1641166650641,0.39214718,47358.0,47357.0,1.14033567]
[1641166651241,0.23114718,47358.0,47357.0,1.14033567]
[1641166651543,0.11114128,47358.0,47357.0,1.14033567]
[1641166651741,0.23114893,47358.0,47357.0,1.14033567]
[1641166651940,0.38114893,47358.0,47357.0,1.14033567]
[1641166652141,0.26114128,47358.0,47357.0,1.14033567]
[1641166652342,0.38114893,47358.0,47357.0,1.14033567]
[1641166652542,0.26114128,47358.0,47357.0,1.73948872]
[1641166653143,0.38114714,47358.0,47357.0,1.97915314]
[1641166653342,0.29891714,47358.0,47357.0,1.97915314]
[1641166653845,0.29891714,47358.0,47357.0,1.45770814]
[1641166654043,0.45191714,47358.0,47357.0,1.45770814]
[1641166654850,0.45191714,47358.0,47357.0,1.21826987]
[1641166655347,0.29891714,47358.0,47357.0,1.21826987]
[1641166655949,0.46891714,47358.0,47357.0,1.21826987]
[1641166656552,0.46891714,47358.0,47357.0,0.85867015]
[1641166657149,0.29891714,47358.0,47357.0,0.85867015]
[1641166657949,0.44291714,47358.0,47357.0,0.85867015]
[1641166658553,0.44291714,47358.0,47357.0,1.21826987]
[1641166659152,0.29891714,47358.0,47357.0,1.21826987]
[1641166660055,0.46891714,47358.0,47357.0,0.85867015]
[1641166661260,0.29891714,47358.0,47357.0,0.85867015]
[1641166661959,0.46691714,47358.0,47357.0,0.85867015]
[1641166662163,0.46691714,47358.0,47357.0,1.21826987]
[1641166663660,0.46691714,47358.0,47357.0,0.85867015]
[1641166663864,0.47991714,47358.0,47357.0,0.56977442]
[1641166664061,0.64991714,47358.0,47357.0,0.56977442]
[1641166664660,0.79025281,47358.0,47357.0,0.56977442]
[1641166665260,0.62025281,47358.0,47357.0,0.56977442]
[1641166665964,0.78925281,47358.0,47357.0,0.56977442]
[1641166667164,1.28925281,47358.0,47357.0,0.56977442]
[1641166667365,1.12025281,47358.0,47357.0,0.0629369]
[1641166667564,2.22825281,47358.0,47350.0,0.23459972]
[1641166667765,0.68,47351.0,47350.0,0.23459972]
[1641166668068,0.681,47351.0,47350.0,0.23459972]
[1641166668466,0.80100586,47351.0,47349.0,0.59903799]
[1641166668667,0.80000586,47351.0,47347.0,0.59903799]
[1641166668869,0.82033567,47348.0,47347.0,0.59903799]
[1641166669068,0.90880567,47348.0,47347.0,0.59903799]
[1641166669265,0.90980567,47348.0,47347.0,0.59903799]
[1641166669783,1.02981153,47348.0,47347.0,0.59903799]
[1641166669967,1.19481153,47348.0,47337.0,0.59903799]
[1641166670166,0.18,47341.0,47337.0,0.59903799]
[1641166670367,0.5,47346.0,47337.0,0.59903799]
[1641166670567,0.18,47341.0,47337.0,0.59903799]
[1641166671470,1.66958203,47342.0,47337.0,0.59903799]
[1641166671667,1.31599671,47338.0,47336.0,0.59903799]
[1641166671866,1.38483671,47338.0,47336.0,0.59903799]
[1641166672469,1.31599671,47337.0,47336.0,0.59903799]
[1641166673166,1.31599671,47337.0,47335.0,0.97915314]
[1641166673369,1.40601215,47337.0,47336.0,0.83881747]
[1641166673968,1.57301215,47337.0,47336.0,0.83881747]
[1641166674171,0.25701544,47337.0,47336.0,0.83881747]
[1641166675367,0.09001544,47337.0,47336.0,0.83881747]
[1641166675770,1.40601215,47337.0,47335.0,0.97915314]
[1641166675968,1.57201215,47337.0,47335.0,0.97915314]
[1641166676568,1.48199671,47337.0,47335.0,0.97915314]
[1641166676773,1.48199671,47337.0,47336.0,0.60038381]
[1641166677281,1.31599671,47337.0,47336.0,0.60038381]
[1641166677570,1.31599671,47337.0,47336.0,0.83881747]
[1641166677571,0.09001544,47337.0,47336.0,0.83881747]
[1641166678169,0.27001544,47337.0,47336.0,0.83881747]
[1641166678567,0.27101544,47337.0,47336.0,0.83881747]
[1641166679372,0.09101544,47337.0,47336.0,0.83881747]
[1641166679870,0.001,47337.0,47336.0,0.36024999]
[1641166680069,0.188,47337.0,47336.0,0.36024999]
[1641166680669,0.188,47337.0,47334.0,0.60041665]
[1641166680871,0.188,47337.0,47328.0,0.009794]
[1641166680872,0.02213558,47335.0,47328.0,0.009794]
[1641166681173,0.02113558,47335.0,47328.0,0.009794]
[1641166681974,0.20913558,47335.0,47328.0,0.009794]
[1641166682469,0.20913558,47335.0,47332.0,0.18]
[1641166682971,0.20913558,47335.0,47328.0,0.009794]
[1641166683373,0.02113558,47335.0,47328.0,0.009794]
[1641166683971,0.20213558,47335.0,47328.0,0.009794]
[1641166684889,0.20213558,47335.0,47326.0,0.32033567]
[1641166685287,0.02113558,47335.0,47326.0,0.14033567]
[1641166686086,0.20413558,47335.0,47326.0,0.14033567]
[1641166687388,0.02113558,47335.0,47326.0,0.14033567]
[1641166688088,0.20413558,47335.0,47326.0,0.14033567]
[1641166689288,0.02113558,47335.0,47326.0,0.14033567]
[1641166689488,0.02113558,47335.0,47326.0,0.32033567]
[1641166689696,0.42253645,47334.0,47326.0,0.32033567]
[1641166691992,0.60353645,47334.0,47326.0,0.32033567]
[1641166692789,0.60353645,47334.0,47329.0,0.18]
[1641166692992,0.60353645,47334.0,47332.0,0.18]
[1641166693392,0.02113224,47337.0,47336.0,1.0]
[1641166694092,0.1188,47337.0,47336.0,1.18]
[1641166694294,0.59452858,47344.0,47337.0,1.108]
[1641166694492,0.35674715,47346.0,47343.0,0.18]
[1641166694695,0.35674715,47346.0,47343.0,0.26319]
[1641166695092,0.35674715,47346.0,47345.0,0.14033567]
[1641166695291,0.59452858,47348.0,47345.0,0.14033567]
[1641166695491,0.59452858,47348.0,47347.0,0.18]
[1641166695892,0.02112607,47350.0,47347.0,0.18]
[1641166696094,0.02112607,47350.0,47347.0,0.369]
[1641166696692,0.02112607,47350.0,47349.0,0.18]
[1641166697094,0.02112607,47350.0,47347.0,0.189]
[1641166697095,0.09003546,47349.0,47347.0,0.78941665]
[1641166697294,0.09003546,47349.0,47348.0,0.18]
[1641166697692,0.09003546,47349.0,47347.0,0.60041665]
[1641166697995,1.31674637,47348.0,47347.0,0.60041665]
[1641166698791,0.09003546,47349.0,47347.0,0.60041665]
[1641166698993,0.09003546,47349.0,47346.0,0.60041665]
[1641166699194,0.02112713,47348.0,47346.0,0.60041665]
[1641166699997,1.43563278,47347.0,47346.0,0.193]
[1641166700593,0.02112713,47348.0,47346.0,0.193]
[1641166700799,0.09003546,47347.0,47346.0,0.193]
[1641166701493,1.53071024,47347.0,47346.0,0.193]
[1641166703398,0.09003546,47347.0,47345.0,0.14033567]
[1641166704097,0.83901379,47346.0,47345.0,0.33233567]
[1641166705000,0.59927774,47346.0,47345.0,0.33233567]
[1641166705398,0.59927774,47346.0,47345.0,0.14033567]
[1641166705596,0.92904925,47347.0,47345.0,0.14033567]
[1641166706195,0.92904925,47347.0,47345.0,0.33233567]
[1641166706597,0.83901379,47346.0,47345.0,0.33233567]
[1641166707197,0.92904925,47346.0,47345.0,0.33233567]
[1641166708198,0.92904925,47346.0,47345.0,0.52433567]
[1641166708400,0.59927888,47346.0,47345.0,0.52433567]
[1641166709101,0.92904925,47347.0,47345.0,0.52433567]
[1641166709400,0.92904925,47347.0,47345.0,0.14033567]
[1641166710003,0.83901379,47346.0,47345.0,0.14033567]
[1641166710202,0.83901379,47346.0,47345.0,0.33633567]
[1641166710604,0.09003546,47347.0,47345.0,0.33633567]
[1641166710605,0.92904925,47347.0,47345.0,0.33633567]
[1641166711405,0.92904925,47347.0,47345.0,0.14033567]
[1641166712107,0.92904925,47347.0,47345.0,0.33633567]
[1641166712506,0.92904925,47347.0,47345.0,1.33633567]
[1641166713508,0.92904925,47347.0,47345.0,1.14033567]
[1641166714207,0.92904925,47347.0,47345.0,1.33533567]
[1641166715409,0.92904925,47347.0,47345.0,1.14033567]
[1641166716011,0.09003546,47347.0,47345.0,1.14033567]
[1641166716310,0.09003546,47347.0,47345.0,1.33433567]
[1641166717509,0.09003546,47347.0,47345.0,1.14033567]
[1641166717713,0.83903091,47346.0,47345.0,1.14033567]
[1641166718114,0.83903091,47346.0,47345.0,1.33533567]
[1641166719316,0.09003546,47347.0,47345.0,1.33533567]
[1641166719515,0.09003546,47347.0,47345.0,1.14033567]
[1641166719914,0.09003546,47346.0,47345.0,1.14033567]
[1641166720113,0.09003546,47346.0,47345.0,1.33433567]
[1641166720617,0.09003546,47347.0,47345.0,1.33433567]
[1641166721214,0.12004401,47346.0,47345.0,1.33433567]
[1641166721512,0.12004401,47346.0,47345.0,1.14033567]
[1641166722217,0.12004401,47346.0,47345.0,1.33433567]
[1641166722414,0.21007947,47346.0,47345.0,1.33433567]
[1641166723118,0.21007947,47346.0,47345.0,1.194]
[1641166723417,0.21007947,47346.0,47345.0,1.0]
[1641166723716,0.48651138,47346.0,47345.0,1.0]
[1641166723916,0.48651138,47346.0,47345.0,0.56668285]
[1641166724115,0.67251138,47346.0,47345.0,0.4157264]
[1641166724715,0.67351138,47346.0,47345.0,0.4157264]
[1641166725115,0.81384705,47346.0,47345.0,0.4157264]